bitfinex/quotes_SOLUSD_20241115
["timestamp","ask_amount","ask_price","bid_price","bid_amount"]
[1731676495999,0.09367462,214.8,214.7,23.2883]
[1731676496513,0.09367462,214.8,214.7,53.90655085]
[1731676496917,0.09367462,214.78,214.7,39.59]
[1731676497303,0.09367462,214.78,214.7,53.90655085]
[1731676497620,23.776884,214.82,214.7,53.90655085]
[1731676498120,0.09367462,214.81,214.7,53.90655085]
[1731676498618,23.87055862,214.83,214.7,39.59]
[1731676499314,23.87055862,214.8,214.7,39.59]
[1731676499508,23.87055862,214.8,214.7,34.9324]
[1731676500709,0.09367462,214.78,214.7,34.9324]
[1731676501232,23.87055862,214.78,214.7,11.6441]
[1731676501727,6.584,214.77,214.7,11.6441]
[1731676501917,23.87055862,214.76,214.7,11.6441]
[1731676502315,23.87055862,214.76,214.62,37.61345085]
[1731676502520,23.87055862,214.76,214.63,16.307]
[1731676502908,28.52695862,214.76,214.63,16.307]
[1731676503931,23.87055862,214.76,214.64,14.31655085]
[1731676505031,6.584,214.77,214.66,14.31655085]
[1731676505230,0.09367462,214.76,214.65,14.31655085]
[1731676506124,23.87055862,214.76,214.65,14.31655085]
[1731676506328,23.87055862,214.76,214.66,53.91395085]
[1731676506622,23.87055862,214.76,214.66,39.5974]
[1731676506831,23.87055862,214.76,214.66,16.3048]
[1731676508327,23.87055862,214.76,214.64,14.31655085]
[1731676508841,28.52695862,214.76,214.64,14.31655085]
[1731676509028,28.52695862,214.76,214.62,37.61345085]
[1731676509412,28.62695862,214.76,214.62,23.2969]
[1731676509611,0.09367462,214.73,214.62,23.2969]
[1731676510423,0.09367462,214.73,214.58,14.31655085]
[1731676510424,23.87055862,214.71,214.58,14.31655085]
[1731676510620,23.87055862,214.71,214.59,14.31655085]
[1731676511246,22.4205,214.7,214.55,14.31655085]
[1731676511534,23.87055862,214.69,214.54,39.6195]
[1731676511734,23.87055862,214.69,214.56,14.31655085]
[1731676512228,0.09367462,214.58,214.54,11.6528]
[1731676512429,0.09367462,214.58,214.46,14.31655085]
[1731676513036,0.09367462,214.56,214.46,14.31655085]
[1731676513860,0.09367462,214.56,214.45,37.63185085]
[1731676514155,0.09367462,214.56,214.47,30.63575085]
[1731676514313,23.776884,214.59,214.51,14.31655085]
[1731676514518,0.09367462,214.58,214.5,14.31655085]
[1731676514743,0.09367462,214.58,214.49,14.31655085]
[1731676515653,0.09367462,214.58,214.47,39.6324]
[1731676515654,0.09367462,214.58,214.48,34.31655085]
[1731676515827,0.09367462,214.58,214.5,14.31655085]
[1731676516028,0.09367462,214.58,214.49,16.3177]
[1731676516029,0.09367462,214.58,214.49,30.63425085]
[1731676516227,0.09367462,214.58,214.49,16.3177]
[1731676517350,0.09367462,214.58,214.47,37.62975085]
[1731676517351,0.09367462,214.58,214.47,23.3132]
[1731676518419,0.09367462,214.56,214.47,23.3132]
[1731676518616,0.09367462,214.56,214.46,16.3199]
[1731676519248,0.09367462,214.56,214.47,14.31655085]
[1731676519426,0.09367462,214.56,214.48,14.31655085]
[1731676519742,0.09367462,214.57,214.46,53.95075085]
[1731676519949,0.09367462,214.57,214.46,39.6342]
[1731676520242,0.09367462,214.57,214.46,53.95075085]
[1731676520446,0.09367462,214.55,214.44,4.6631]
[1731676520760,23.87055862,214.55,214.44,4.6631]
[1731676520945,0.09367462,214.55,214.44,16.3213]
[1731676521154,0.09367462,214.55,214.45,14.31655085]
[1731676521448,0.09367462,214.55,214.44,16.3213]
[1731676521841,23.87055862,214.53,214.44,16.3213]
[1731676522548,23.87055862,214.53,214.44,11.6582]
[1731676522755,30.23145862,214.53,214.44,11.6582]
[1731676522933,34.89285862,214.53,214.44,11.6582]
[1731676524146,34.89285862,214.53,214.39,37.63745085]
[1731676524327,34.89285862,214.53,214.4,16.3245]
[1731676525585,39.15825173,214.53,214.41,14.31655085]
[1731676526242,39.15825173,214.53,214.4,14.31655085]
[1731676526746,34.49685173,214.53,214.41,14.31655085]
[1731676526948,34.49685173,214.53,214.42,14.31655085]
[1731676527458,34.49685173,214.53,214.43,14.31655085]
[1731676527836,34.49685173,214.53,214.39,23.3209]
[1731676528033,34.49685173,214.53,214.42,14.31655085]
[1731676528645,34.49685173,214.53,214.41,14.31655085]
[1731676528961,34.49685173,214.53,214.42,16.323]
[1731676529653,34.49685173,214.53,214.42,30.63955085]
[1731676530835,39.15815173,214.53,214.42,30.63955085]
[1731676531241,39.15815173,214.53,214.42,16.323]
[1731676532367,39.15815173,214.53,214.42,14.31655085]
[1731676532574,34.49685173,214.53,214.42,14.31655085]
[1731676533181,39.15815173,214.53,214.4,14.31655085]
[1731676533471,39.25815173,214.53,214.39,23.3209]
[1731676533669,39.15815173,214.53,214.39,37.63745085]
[1731676533965,39.15815173,214.53,214.4,14.31655085]
[1731676534348,39.15815173,214.53,214.41,16.3238]
[1731676536741,0.09367462,214.51,214.41,16.3238]
[1731676537665,0.09367462,214.52,214.41,16.3238]
[1731676537852,0.09367462,214.52,214.35,23.3263]
[1731676537853,23.87055862,214.5,214.39,14.31655085]
[1731676538970,10.62629311,214.53,214.44,14.31655085]
[1731676539150,10.62629311,214.53,214.43,14.31655085]
[1731676539351,0.09367462,214.52,214.43,14.31655085]
[1731676539553,0.09367462,214.52,214.35,23.3263]
[1731676539554,0.09367462,214.52,214.41,14.31655085]
[1731676540066,0.09367462,214.52,214.42,14.31655085]
[1731676540277,23.87055862,214.52,214.42,14.31655085]
[1731676540871,23.87055862,214.52,214.44,14.31655085]
[1731676541275,0.09367462,214.52,214.46,14.31655085]
[1731676541649,6.3609,214.53,214.47,14.31655085]
[1731676541850,15.9252,214.54,214.47,14.31655085]
[1731676542778,0.09367462,214.53,214.47,14.31655085]
[1731676543450,23.87055862,214.53,214.48,16.3184]
[1731676543646,0.09367462,214.53,214.48,16.3184]
[1731676546067,0.09367462,214.53,214.46,14.31655085]
[1731676548261,0.09367462,214.53,214.47,11.6566]
[1731676548572,23.87055862,214.53,214.47,11.6566]
[1731676551175,23.87055862,214.53,214.44,23.3165]
[1731676552874,28.53185862,214.53,214.44,23.3165]
[1731676554794,23.87055862,214.53,214.44,23.3165]
[1731676555162,23.87055862,214.53,214.46,9.1846642]
[1731676555463,23.87055862,214.53,214.44,23.3165]
[1731676555784,23.87055862,214.53,214.45,9.1846642]
[1731676556588,23.87055862,214.53,214.46,16.3199]
[1731676557776,28.53185862,214.53,214.46,11.6571]
[1731676558174,28.53185862,214.53,214.42,11.659]
[1731676560000,28.53185862,214.53,214.41,9.1846642]
[1731676560994,28.53185862,214.53,214.42,11.6593]
[1731676561177,28.63185862,214.53,214.42,11.6593]
[1731676561493,0.09367462,214.48,214.42,11.6593]
[1731676561682,23.87055862,214.46,214.42,11.6593]
[1731676562782,23.87055862,214.46,214.36,9.1846642]
[1731676562982,23.87055862,214.46,214.37,16.3268]
[1731676564396,28.53345862,214.46,214.37,16.3268]
[1731676565604,28.53345862,214.46,214.37,11.662]
[1731676567001,28.53345862,214.46,214.34,23.3274]
[1731676567183,23.87055862,214.46,214.38,9.1846642]
[1731676567388,15.9415,214.47,214.41,9.1846642]
[1731676567581,15.9415,214.47,214.42,9.1846642]
[1731676567990,0.09367462,214.46,214.41,9.1846642]
[1731676568486,0.09367462,214.46,214.42,16.323]
[1731676568807,0.09367462,214.46,214.43,9.1846642]
[1731676569107,0.09367462,214.48,214.44,9.1846642]
[1731676569302,16.3841,214.52,214.43,9.1846642]
[1731676569486,23.776884,214.51,214.43,9.1846642]
[1731676569802,0.09367462,214.5,214.44,9.1846642]
[1731676570508,16.3841,214.52,214.46,9.1846642]
[1731676570815,0.09367462,214.51,214.47,16.3192]
[1731676571503,19.35988669,214.57,214.47,25.5038642]
[1731676571802,19.35988669,214.57,214.47,16.3192]
[1731676572109,24.02038669,214.57,214.47,16.3192]
[1731676572316,0.09367462,214.56,214.47,16.3192]
[1731676572812,23.87055862,214.56,214.49,9.1846642]
[1731676572996,15.0102,214.57,214.51,9.1846642]
[1731676573180,15.0102,214.57,214.47,16.3192]
[1731676573396,0.09367462,214.56,214.47,16.3192]
[1731676574426,23.87055862,214.56,214.47,11.6566]
[1731676574790,0.09367462,214.54,214.42,23.3187]
[1731676574994,23.87055862,214.54,214.42,23.3187]
[1731676575296,23.87055862,214.54,214.4,16.3245]
[1731676575800,23.87055862,214.52,214.4,16.3245]
[1731676576309,0.09367462,214.5,214.4,16.3245]
[1731676576895,23.87055862,214.48,214.35,16.3283]
[1731676577296,23.87055862,214.48,214.37,9.1846642]
[1731676577297,0.09367462,214.48,214.37,9.1846642]
[1731676577517,23.776884,214.49,214.36,9.1846642]
[1731676577726,0.09367462,214.48,214.36,20.0]
[1731676578400,0.09367462,214.48,214.35,39.6546]
[1731676578401,0.09367462,214.48,214.35,16.3283]
[1731676578714,23.87055862,214.46,214.35,16.3283]
[1731676578921,28.53345862,214.46,214.35,11.6631]
[1731676579496,23.87055862,214.44,214.35,11.6631]
[1731676580930,0.09367462,214.41,214.34,23.3269]
[1731676581815,0.09367462,214.43,214.34,23.3269]
[1731676582024,4.75717462,214.43,214.34,23.3269]
[1731676582523,0.09367462,214.41,214.34,23.3269]
[1731676583304,0.09367462,214.41,214.34,39.656]
[1731676585522,15.14220511,214.45,214.34,39.656]
[1731676585523,23.87055862,214.43,214.34,39.656]
[1731676585927,23.87055862,214.43,214.34,54.02313216]
[1731676586107,23.87055862,214.43,214.34,39.656]
[1731676586511,23.87055862,214.42,214.34,16.3291]
[1731676586901,23.87055862,214.42,214.34,11.6637]
[1731676587099,23.87055862,214.41,214.34,11.6637]
[1731676588303,23.87055862,214.41,214.31,14.36713216]
[1731676589319,23.87055862,214.41,214.32,14.36713216]
[1731676589715,23.87055862,214.41,214.31,14.36713216]
[1731676591231,23.87055862,214.41,214.32,16.3307]
[1731676592434,23.87055862,214.41,214.32,14.36713216]
[1731676594633,23.87055862,214.41,214.33,16.3299]
[1731676595018,23.87055862,214.41,214.33,30.69703216]
[1731676596824,23.87055862,214.41,214.35,14.36713216]
[1731676597841,23.87055862,214.41,214.34,14.36713216]
[1731676598047,23.87055862,214.44,214.34,14.36713216]
[1731676598246,23.87055862,214.42,214.34,14.36713216]
[1731676599365,23.87055862,214.42,214.36,4.665]
[1731676600133,23.87055862,214.42,214.35,11.6627]
[1731676600555,23.87055862,214.42,214.35,16.3279]
[1731676601340,23.87055862,214.4,214.31,11.665]
[1731676603344,23.87055862,214.38,214.31,11.665]
[1731676603843,28.53475862,214.4,214.31,11.665]
[1731676609639,23.776884,214.4,214.24,39.675]
[1731676609861,16.6252,214.41,214.37,9.19736733]
[1731676610161,16.6252,214.41,214.38,9.19736733]
[1731676610465,16.6252,214.41,214.27,6.27245495]
[1731676610466,0.09367462,214.4,214.27,6.27245495]
[1731676610662,16.6252,214.41,214.35,9.19736733]
[1731676611560,0.09367462,214.4,214.36,9.19736733]
[1731676611938,0.09367462,214.4,214.35,9.19736733]
[1731676612143,0.09367462,214.4,214.36,9.19736733]
[1731676612348,0.09367462,214.4,214.37,9.19736733]
[1731676612759,10.7592,214.45,214.37,9.19736733]
[1731676613075,23.87055862,214.44,214.37,9.19736733]
[1731676613364,0.09367462,214.44,214.37,9.19736733]
[1731676613965,0.09367462,214.44,214.39,9.19736733]
[1731676614167,0.09367462,214.44,214.41,9.19736733]
[1731676615957,0.09367462,214.44,214.42,25.52036733]
[1731676616964,0.09367462,214.44,214.42,16.323]
[1731676617353,0.09367462,214.44,214.43,9.19736733]
[1731676617862,0.09367462,214.44,214.42,9.19736733]
[1731676618178,0.09367462,214.44,214.43,9.19736733]
[1731676619257,0.09367462,214.44,214.43,13.86086733]
[1731676620672,0.09367462,214.44,214.37,20.0]
[1731676620955,0.09367462,214.44,214.43,9.19736733]
[1731676622565,0.09367462,214.44,214.43,33.86086733]
[1731676623963,0.09367462,214.44,214.43,24.6635]
[1731676624165,0.09367462,214.44,214.43,33.86086733]
[1731676627086,0.09367462,214.44,214.43,24.6635]
[1731676627386,0.09367462,214.44,214.43,33.86086733]
[1731676628677,0.09367462,214.44,214.43,24.6635]
[1731676629680,0.09367462,214.44,214.43,33.86086733]
[1731676629981,0.09367462,214.44,214.43,24.6635]
[1731676630283,0.09367462,214.44,214.43,4.6635]
[1731676631874,0.09367462,214.44,214.42,20.0]
[1731676632279,0.09367462,214.44,214.43,29.19736733]
[1731676634090,0.09367462,214.44,214.43,33.86086733]
[1731676634268,7.462e-05,214.44,214.43,55.49686733]
[1731676634473,22.78537322,214.62,214.44,20.1]
[1731676634667,27.54477322,214.62,214.44,20.0]
[1731676634987,27.54477322,214.62,214.46,9.19736733]
[1731676635166,27.44477322,214.62,214.48,9.19736733]
[1731676635362,27.44477322,214.62,214.49,9.19736733]
[1731676635590,23.776884,214.61,214.5,9.19736733]
[1731676635888,16.1798,214.62,214.52,9.19736733]
[1731676636763,0.09367462,214.61,214.52,9.19736733]
[1731676637504,23.87055862,214.61,214.52,9.19736733]
[1731676637874,23.87055862,214.61,214.53,16.3146]
[1731676638868,23.87055862,214.61,214.54,9.19736733]
[1731676639391,23.87055862,214.61,214.56,9.19736733]
[1731676639591,0.09367462,214.61,214.56,9.19736733]
[1731676639793,16.1798,214.62,214.56,9.19736733]
[1731676639981,16.1798,214.62,214.54,9.19736733]
[1731676640183,0.09367462,214.61,214.53,9.19736733]
[1731676641192,0.09367462,214.61,214.51,23.3089]
[1731676641193,23.87055862,214.61,214.54,16.3139]
[1731676642572,28.53015862,214.61,214.52,4.6615]
[1731676642982,28.53015862,214.61,214.52,16.3154]
[1731676644069,28.53015862,214.61,214.48,20.0]
[1731676644772,28.53015862,214.61,214.47,16.3192]
[1731676645294,28.63015862,214.61,214.47,16.3192]
[1731676645595,0.09367462,214.56,214.47,16.3192]
[1731676646520,0.09367462,214.54,214.43,25.51966733]
[1731676647305,0.09367462,214.54,214.46,9.19736733]
[1731676648096,0.09367462,214.54,214.48,9.19736733]
[1731676648401,0.09367462,214.54,214.49,9.19736733]
[1731676648692,0.09367462,214.57,214.48,9.19736733]
[1731676649298,0.09367462,214.57,214.49,9.19736733]
[1731676649889,23.87055862,214.57,214.51,9.19736733]
[1731676650100,16.3429,214.58,214.51,9.19736733]
[1731676650673,0.09367462,214.57,214.51,9.19736733]
[1731676650872,0.09367462,214.57,214.5,25.51436733]
[1731676651309,23.87055862,214.57,214.5,25.51436733]
[1731676652513,28.53095862,214.57,214.5,16.317]
[1731676652809,23.87055862,214.57,214.5,16.317]
[1731676653506,28.53105862,214.57,214.5,16.317]
[1731676653903,28.53105862,214.57,214.44,32.51386733]
[1731676654086,28.53105862,214.57,214.46,11.6569]
[1731676656308,28.53105862,214.57,214.44,32.51386733]
[1731676656483,28.53105862,214.57,214.44,23.3165]
[1731676656907,32.9168726,214.57,214.44,23.3165]
[1731676657109,32.9168726,214.57,214.44,39.638]
[1731676657629,31.9168726,214.57,214.44,39.638]
[1731676658313,31.9168726,214.57,214.44,32.51386733]
[1731676658499,31.9168726,214.57,214.44,23.3165]
[1731676659704,0.09367462,214.56,214.44,39.638]
[1731676660291,0.09367462,214.56,214.44,48.83536733]
[1731676660907,23.87055862,214.54,214.44,48.83536733]
[1731676661596,23.87055862,214.56,214.44,48.83536733]
[1731676663430,28.53125862,214.56,214.44,48.83536733]
[1731676665126,23.87055862,214.56,214.46,9.19736733]
[1731676665337,23.776884,214.57,214.46,9.19736733]
[1731676665536,0.09367462,214.56,214.46,9.19736733]
[1731676666035,0.09367462,214.56,214.47,9.19736733]
[1731676666611,0.09367462,214.56,214.46,9.19736733]
[1731676666924,0.09367462,214.56,214.45,29.19736733]
[1731676667241,23.87055862,214.54,214.44,23.3165]
[1731676668433,23.87055862,214.54,214.45,9.19736733]
[1731676668930,23.87055862,214.54,214.44,48.83536733]
[1731676669636,23.87055862,214.54,214.44,32.51386733]
[1731676669807,23.87055862,214.54,214.46,9.19736733]
[1731676670207,23.87055862,214.54,214.47,9.19736733]
[1731676670830,23.87055862,214.56,214.46,9.19736733]
[1731676671210,4.6604,214.57,214.45,20.0]
[1731676671211,23.87055862,214.57,214.45,20.0]
[1731676671435,23.87055862,214.57,214.46,9.19736733]
[1731676671737,23.87055862,214.57,214.47,16.3192]
[1731676673331,23.87055862,214.57,214.47,25.51656733]
[1731676673623,23.87055862,214.57,214.48,9.19736733]
[1731676674334,23.87055862,214.57,214.49,9.19736733]
[1731676674533,23.87055862,214.57,214.5,16.317]
[1731676675434,23.87055862,214.57,214.5,25.51436733]
[1731676675940,23.87055862,214.57,214.5,16.317]
[1731676676824,23.87055862,214.57,214.52,9.19736733]
[1731676677023,23.87055862,214.57,214.51,9.19736733]
[1731676677226,23.87055862,214.57,214.5,9.19736733]
[1731676678534,23.87055862,214.57,214.51,16.3161]
[1731676679736,23.87055862,214.57,214.47,23.3132]
[1731676681134,28.53115862,214.57,214.47,23.3132]
[1731676682316,23.87055862,214.57,214.47,32.51056733]
[1731676682731,23.87055862,214.57,214.47,23.3132]
[1731676683623,23.87055862,214.57,214.47,48.82976733]
[1731676684734,23.87055862,214.57,214.48,9.19736733]
[1731676685219,23.87055862,214.57,214.5,9.19736733]
[1731676685429,16.3429,214.58,214.5,9.19736733]
[1731676685746,0.09367462,214.57,214.52,9.19736733]
[1731676685946,6.4858,214.62,214.54,9.19736733]
[1731676686843,0.09367462,214.61,214.55,16.3131]
[1731676687348,23.87055862,214.61,214.55,16.3131]
[1731676688152,23.87055862,214.61,214.55,25.51046733]
[1731676688645,23.87055862,214.62,214.55,25.51046733]
[1731676688850,23.87055862,214.62,214.48,20.0]
[1731676689150,23.87055862,214.62,214.56,9.19736733]
[1731676690340,23.87055862,214.62,214.55,9.19736733]
[1731676690735,23.87055862,214.62,214.56,16.3124]
[1731676692247,23.87055862,214.62,214.56,11.6517]
[1731676692455,23.87055862,214.62,214.56,20.84906733]
[1731676692844,23.87055862,214.62,214.59,9.19736733]
[1731676693051,23.87055862,214.62,214.58,9.19736733]
[1731676693261,23.87055862,214.62,214.57,9.19736733]
[1731676694151,23.87055862,214.62,214.58,16.3108]
[1731676694349,6.5714,214.67,214.59,9.19736733]
[1731676694582,0.09367462,214.66,214.6,9.19736733]
[1731676694952,15.9343,214.68,214.62,9.19736733]
[1731676695149,15.9343,214.68,214.61,9.19736733]
[1731676695467,15.9343,214.68,214.6,9.19736733]
[1731676695769,15.9343,214.68,214.58,48.80946733]
[1731676696171,15.9343,214.68,214.61,9.19736733]
[1731676696470,0.09367462,214.66,214.61,9.19736733]
[1731676697175,0.09367462,214.66,214.6,16.3093]
[1731676697478,0.09367462,214.66,214.6,25.50666733]
[1731676697657,0.09367462,214.66,214.6,16.3093]
[1731676700256,0.09367462,214.66,214.6,11.6495]
[1731676700459,0.09367462,214.64,214.56,11.6515]
[1731676704069,0.09367462,214.62,214.56,11.6515]
[1731676704299,23.87055862,214.6,214.53,4.6613]
[1731676705278,28.53045862,214.6,214.49,16.3177]
[1731676706182,23.87055862,214.58,214.42,9.19736733]
[1731676706891,23.87055862,214.58,214.44,9.19736733]
[1731676707065,23.87055862,214.58,214.47,9.19736733]
[1731676707266,0.09367462,214.58,214.47,9.19736733]
[1731676707463,23.87055862,214.58,214.48,16.3184]
[1731676707990,23.87055862,214.58,214.48,25.51576733]
[1731676708696,23.87055862,214.58,214.47,9.19736733]
[1731676708987,0.09367462,214.56,214.46,9.19736733]
[1731676710888,0.09367462,214.56,214.46,14.34535736]
[1731676711493,0.09367462,214.56,214.48,14.34535736]
[1731676711703,15.8694,214.61,214.51,14.34535736]
[1731676711998,15.8694,214.61,214.49,14.34535736]
[1731676712366,15.8694,214.61,214.48,14.34535736]
[1731676712562,0.09367462,214.6,214.49,14.34535736]
[1731676712785,4.75347462,214.6,214.51,16.3161]
[1731676712994,0.09367462,214.58,214.51,16.3161]
[1731676713570,23.776884,214.6,214.52,14.34535736]
[1731676713991,23.776884,214.6,214.54,14.34535736]
[1731676714594,0.09367462,214.59,214.53,14.34535736]
[1731676715092,0.09367462,214.59,214.54,16.3139]
[1731676715875,0.09367462,214.59,214.54,11.6528]
[1731676716202,0.09367462,214.57,214.5,11.6548]
[1731676716908,4.75427462,214.57,214.46,14.34535736]
[1731676717091,0.09367462,214.55,214.46,14.34535736]
[1731676717595,0.09367462,214.55,214.47,14.34535736]
[1731676718203,0.09367462,214.55,214.48,16.3184]
[1731676718897,0.09367462,214.55,214.49,14.34535736]
[1731676719299,0.09367462,214.55,214.5,14.34535736]
[1731676719790,23.776884,214.56,214.5,14.34535736]
[1731676719990,23.776884,214.56,214.48,23.3121]
[1731676720193,23.776884,214.56,214.5,14.34535736]
[1731676721006,0.09367462,214.55,214.51,11.6544]
[1731676721704,0.09367462,214.56,214.51,11.6544]
[1731676721878,23.87055862,214.56,214.49,4.6622]
[1731676723004,28.53125862,214.56,214.47,11.6563]
[1731676725195,28.53095862,214.58,214.47,11.6563]
[1731676725395,0.09367462,214.54,214.47,11.6563]
[1731676725594,23.87055862,214.54,214.47,11.6563]
[1731676726584,23.87055862,214.52,214.45,23.3153]
[1731676728513,23.87055862,214.52,214.42,14.34535736]
[1731676729209,23.87055862,214.54,214.4,14.34535736]
[1731676729505,23.87055862,214.5,214.38,34.34535736]
[1731676729808,23.87055862,214.5,214.44,14.34535736]
[1731676730020,23.87055862,214.5,214.45,14.34535736]
[1731676730684,23.87055862,214.5,214.46,16.3199]
[1731676732229,6.0929,214.55,214.49,14.34535736]
[1731676732604,6.0929,214.55,214.48,14.34535736]
[1731676732926,0.09367462,214.54,214.49,14.34535736]
[1731676733125,16.1258,214.57,214.46,16.3199]
[1731676733126,16.1258,214.57,214.5,14.34535736]
[1731676733324,16.1258,214.57,214.52,14.34535736]
[1731676733622,0.09367462,214.56,214.52,14.34535736]
[1731676734096,0.09367462,214.56,214.53,16.3146]
[1731676734297,0.09367462,214.6,214.53,16.3146]
[1731676734527,23.87055862,214.6,214.53,16.3146]
[1731676735198,16.1258,214.62,214.55,14.34535736]
[1731676736310,16.1258,214.62,214.56,16.3124]
[1731676736619,23.87055862,214.61,214.56,16.3124]
[1731676737323,23.87055862,214.61,214.56,11.6517]
[1731676739022,23.87055862,214.61,214.54,14.34535736]
[1731676739204,23.87055862,214.61,214.55,14.34535736]
[1731676739516,23.87055862,214.61,214.54,14.34535736]
[1731676739718,23.87055862,214.61,214.53,37.65205736]
[1731676740023,23.87055862,214.61,214.5,14.34535736]
[1731676740332,23.87055862,214.61,214.46,39.6342]
[1731676740333,28.53015862,214.61,214.49,14.34535736]
[1731676740511,28.53015862,214.61,214.48,14.34535736]
[1731676740708,28.53015862,214.61,214.46,39.6342]
[1731676741225,28.53015862,214.61,214.47,14.34535736]
[1731676741598,23.87055862,214.61,214.5,14.34535736]
[1731676742217,28.53015862,214.61,214.49,14.34535736]
[1731676742605,28.53015862,214.61,214.47,14.34535736]
[1731676742810,23.87055862,214.59,214.46,16.3199]
[1731676743118,23.87055862,214.57,214.46,16.3199]
[1731676743368,23.87055862,214.57,214.47,14.34535736]
[1731676743511,0.09367462,214.57,214.47,14.34535736]
[1731676743918,23.776884,214.59,214.48,14.34535736]
[1731676744222,23.776884,214.59,214.51,14.34535736]
[1731676744611,23.776884,214.59,214.53,14.34535736]
[1731676744817,6.3882,214.6,214.53,14.34535736]
[1731676745215,0.09367462,214.59,214.54,16.3139]
[1731676745922,23.87055862,214.59,214.54,16.3139]
[1731676747145,23.87055862,214.59,214.54,11.6528]
[1731676747318,28.53065862,214.59,214.54,11.6528]
[1731676747725,23.87055862,214.59,214.54,11.6528]
[1731676748628,28.53055862,214.59,214.54,11.6528]
[1731676748832,28.53055862,214.59,214.47,14.34535736]
[1731676748833,28.53055862,214.59,214.49,11.6551]
[1731676749045,23.87055862,214.57,214.49,11.6551]
[1731676749210,4.6607,214.56,214.46,46.6286]
[1731676749416,23.87055862,214.55,214.46,23.3143]
[1731676750329,23.776884,214.57,214.46,23.3143]
[1731676750645,28.437484,214.57,214.46,23.3143]
[1731676750940,0.09367462,214.56,214.46,23.3143]
[1731676751233,4.75447462,214.56,214.43,14.34535736]
[1731676751441,23.776884,214.55,214.43,14.34535736]
[1731676751618,23.87055862,214.52,214.4,16.3245]
[1731676752836,0.09367462,214.5,214.38,23.3229]
[1731676753138,0.09367462,214.46,214.38,23.3229]
[1731676754013,23.87055862,214.44,214.35,16.3283]
[1731676755128,23.87055862,214.44,214.31,23.3306]
[1731676755320,28.53385862,214.44,214.31,23.3306]
[1731676755838,0.09367462,214.42,214.3,16.3321]
[1731676756014,23.776884,214.42,214.3,16.3321]
[1731676756212,23.776884,214.42,214.33,14.34535736]
[1731676756621,23.776884,214.42,214.32,14.34535736]
[1731676756829,23.776884,214.42,214.31,14.34535736]
[1731676757320,23.776884,214.42,214.32,30.67605736]
[1731676758009,23.776884,214.42,214.32,16.3307]
[1731676760633,15.4506,214.46,214.36,14.34535736]
[1731676760834,15.4506,214.46,214.39,14.34535736]
[1731676761136,15.4506,214.46,214.33,20.0]
[1731676761137,16.649,214.51,214.4,14.34535736]
[1731676761339,16.649,214.51,214.38,14.34535736]
[1731676761549,16.649,214.51,214.36,14.34535736]
[1731676761918,16.649,214.51,214.35,34.34535736]
[1731676762124,23.776884,214.5,214.36,14.34535736]
[1731676762642,23.776884,214.48,214.37,16.3268]
[1731676763528,23.776884,214.46,214.33,11.6642]
[1731676763743,23.776884,214.44,214.33,11.6642]
[1731676763935,21.6891,214.41,214.33,11.6642]
[1731676764244,15.306,214.38,214.28,11.6665]
[1731676764451,6.3831,214.36,214.19,19.046262]
[1731676764659,23.776884,214.33,214.23,11.6692]
[1731676765448,23.776884,214.31,214.23,11.6692]
[1731676765950,23.776884,214.33,214.23,11.6692]
[1731676766151,23.776884,214.33,214.25,14.34535736]
[1731676766452,15.306,214.34,214.27,14.34535736]
[1731676767159,15.306,214.34,214.26,14.34535736]
[1731676767326,15.306,214.34,214.24,14.34535736]
[1731676767524,23.776884,214.33,214.25,16.336]
[1731676768256,23.776884,214.33,214.25,30.68135736]
[1731676769326,23.776884,214.33,214.26,14.34535736]
[1731676769857,15.306,214.34,214.28,14.34535736]
[1731676770030,15.5996,214.41,214.31,14.34535736]
[1731676770231,15.5996,214.41,214.3,14.34535736]
[1731676770655,15.5996,214.41,214.28,14.34535736]
[1731676771034,20.2637,214.41,214.3,14.34535736]
[1731676771234,23.776884,214.4,214.3,14.34535736]
[1731676772338,23.776884,214.4,214.31,14.34535736]
[1731676772536,23.776884,214.4,214.3,14.34535736]
[1731676772863,15.5996,214.41,214.3,14.34535736]
[1731676773465,15.5996,214.41,214.31,16.3314]
[1731676773632,15.5996,214.41,214.32,14.34535736]
[1731676773957,23.776884,214.4,214.32,14.34535736]
[1731676774255,23.776884,214.4,214.31,16.3314]
[1731676775452,28.441184,214.4,214.27,34.34535736]
[1731676775748,28.441184,214.4,214.28,14.34535736]
[1731676776131,28.441184,214.4,214.26,54.01665736]
[1731676776624,28.441184,214.4,214.26,39.6713]
[1731676777260,28.441184,214.4,214.26,54.01665736]
[1731676777754,28.441184,214.4,214.26,23.3361]
[1731676777938,23.776884,214.38,214.26,23.3361]